bitfinex/quotes_BTCUSD_20250530
["timestamp","ask_amount","ask_price","bid_price","bid_amount"]
[1748621711033,0.78302771,105310.0,105300.0,0.02478535]
[1748621711282,0.78302771,105310.0,105300.0,0.02478538]
[1748621711479,1.07762771,105310.0,105300.0,0.0247854]
[1748621711928,1.07762771,105310.0,105300.0,0.02478078]
[1748621712110,1.07762771,105310.0,105300.0,0.007]
[1748621712513,1.19718166,105310.0,105300.0,0.007]
[1748621712833,1.19718166,105310.0,105300.0,0.004]
[1748621713039,1.19718166,105310.0,105300.0,0.006]
[1748621713247,1.29762571,105310.0,105300.0,0.006]
[1748621713653,1.29762571,105310.0,105300.0,0.002]
[1748621713858,0.23103001,105300.0,105290.0,0.01689]
[1748621714069,0.77156183,105300.0,105290.0,0.01689]
[1748621714960,0.19943001,105300.0,105290.0,0.01689]
[1748621715176,0.19943001,105300.0,105290.0,0.59069296]
[1748621715397,0.19943001,105300.0,105290.0,0.04839]
[1748621715614,0.19943001,105300.0,105290.0,0.71328516]
[1748621715816,0.19943001,105300.0,105290.0,0.69551662]
[1748621715988,0.19943001,105300.0,105290.0,0.71328483]
[1748621716160,0.19943001,105300.0,105290.0,0.17375301]
[1748621716912,0.19943001,105300.0,105290.0,0.17375034]
[1748621717127,0.19943001,105300.0,105290.0,0.17375043]
[1748621717332,0.19943001,105300.0,105290.0,0.1559848]
[1748621717589,0.19943001,105300.0,105290.0,0.17375052]
[1748621718013,0.19943001,105300.0,105290.0,0.15774988]
[1748621718668,0.19943001,105300.0,105290.0,0.17404988]
[1748621718904,0.19943001,105300.0,105290.0,0.1740483]
[1748621719119,0.19943001,105300.0,105290.0,0.15774839]
[1748621719330,0.19943001,105300.0,105290.0,0.1399848]
[1748621719545,0.19943001,105300.0,105290.0,0.15774826]
[1748621719962,0.19943001,105300.0,105290.0,0.1557848]
[1748621720401,0.19943001,105300.0,105290.0,0.14224703]
[1748621720648,0.19943001,105300.0,105290.0,0.1244848]
[1748621720847,0.19943001,105300.0,105290.0,0.14224639]
[1748621721048,0.19943001,105300.0,105290.0,0.01889]
[1748621721628,0.19943001,105300.0,105290.0,0.03665168]
[1748621721899,0.23113001,105300.0,105290.0,0.03665168]
[1748621722082,0.52573001,105300.0,105290.0,0.03665168]
[1748621722572,0.52573001,105300.0,105290.0,0.03664883]
[1748621723002,0.52573001,105300.0,105290.0,0.01889]
[1748621723336,0.21533001,105300.0,105290.0,0.03664836]
[1748621724252,0.21533001,105300.0,105290.0,0.03564751]
[1748621724468,0.21533001,105300.0,105290.0,0.03564752]
[1748621725000,0.21533001,105300.0,105290.0,0.0356442]
[1748621725743,0.21533001,105300.0,105290.0,0.03564181]
[1748621725982,0.21533001,105300.0,105290.0,0.03564164]
[1748621726342,0.21533001,105300.0,105290.0,0.03564195]
[1748621726596,0.19943001,105300.0,105290.0,0.03564195]
[1748621727046,0.19943001,105300.0,105290.0,0.03564021]
[1748621727269,0.19943001,105300.0,105290.0,0.17383497]
[1748621727471,0.19943001,105300.0,105290.0,0.71436679]
[1748621728175,0.19943001,105300.0,105290.0,0.71436434]
[1748621728371,0.19943001,105300.0,105290.0,0.1560848]
[1748621728690,0.19943001,105300.0,105290.0,0.17383389]
[1748621729363,0.19943001,105300.0,105290.0,0.17383488]
[1748621729572,0.19943001,105300.0,105290.0,0.17383618]
[1748621729782,0.19943001,105300.0,105290.0,0.1560848]
[1748621729986,0.19943001,105300.0,105290.0,0.17383613]
[1748621730203,0.19943001,105300.0,105290.0,0.17383621]
[1748621730406,0.19943001,105300.0,105290.0,0.17383622]
[1748621731063,0.19943001,105300.0,105290.0,0.1560848]
[1748621731268,0.19943001,105300.0,105290.0,0.17383823]
[1748621731522,0.19943001,105300.0,105290.0,0.18314508]
[1748621732246,0.19943001,105300.0,105290.0,0.16539165]
[1748621733284,0.19943001,105300.0,105290.0,0.71309911]
[1748621733504,0.00949622,105300.0,105290.0,1.64980666]
[1748621733720,0.02848848,105300.0,105290.0,2.67056166]
[1748621733936,0.03798479,105300.0,105290.0,2.6883156]
[1748621734168,0.01948005,105310.0,105300.0,0.55842272]
[1748621734375,0.20939553,105310.0,105300.0,1.23976217]
[1748621734583,0.2188913,105310.0,105300.0,1.23026581]
[1748621734797,0.2188913,105310.0,105300.0,1.21251236]
[1748621735005,0.20939589,105310.0,105300.0,0.48080581]
[1748621735237,0.19990021,105310.0,105300.0,0.46490581]
[1748621735464,0.19990021,105310.0,105300.0,0.46334666]
[1748621736064,0.19990021,105310.0,105300.0,0.4633496]
[1748621736272,0.19990021,105310.0,105300.0,0.1441044]
[1748621736478,0.23190021,105310.0,105300.0,0.03850993]
[1748621736677,0.77243203,105310.0,105300.0,0.0425131]
[1748621736804,0.23190021,105310.0,105300.0,0.04251312]
[1748621737485,0.19990021,105310.0,105300.0,0.14810792]
[1748621737840,0.19990021,105310.0,105300.0,0.14810946]
[1748621738045,0.19990021,105310.0,105300.0,0.14810945]
[1748621738246,0.19990021,105310.0,105300.0,0.14810927]
[1748621738428,0.19990021,105310.0,105300.0,0.1303496]
[1748621738633,0.19990021,105310.0,105300.0,0.14810928]
[1748621738834,0.19990021,105310.0,105300.0,0.1303496]
[1748621739128,0.19990021,105310.0,105300.0,0.14810928]
[1748621739299,0.19990021,105310.0,105300.0,0.1303496]
[1748621739527,0.19990021,105310.0,105300.0,0.14810928]
[1748621739761,0.19990021,105310.0,105300.0,0.18010928]
[1748621740199,0.19990021,105310.0,105300.0,0.19786844]
[1748621740402,0.19990021,105310.0,105300.0,1.07839996]
[1748621740605,0.19990021,105310.0,105300.0,1.0783981]
[1748621740808,0.19990021,105310.0,105300.0,1.0606411]
[1748621741015,0.19990021,105310.0,105300.0,1.07839817]
[1748621741427,0.19990021,105310.0,105300.0,1.0606411]
[1748621741633,0.19990021,105310.0,105300.0,1.0783933]
[1748621741836,0.19990021,105310.0,105300.0,1.07839217]
[1748621742251,0.19990021,105310.0,105300.0,1.07839222]
[1748621742453,0.19990021,105310.0,105300.0,0.53786107]
[1748621742653,0.19990021,105310.0,105300.0,0.53786121]
[1748621742924,0.19990021,105310.0,105300.0,0.8324182]
[1748621743126,0.19990021,105310.0,105300.0,0.5214589]
[1748621743334,0.19990021,105310.0,105300.0,0.50370928]
[1748621743541,0.19990021,105310.0,105300.0,0.52145892]
[1748621743747,0.19990021,105310.0,105300.0,0.53805892]
[1748621744631,0.19990021,105310.0,105300.0,1.07859017]
[1748621745036,0.19990021,105310.0,105300.0,1.07859019]
[1748621745240,0.19990021,105310.0,105300.0,0.52030928]
[1748621746859,0.19990021,105310.0,105300.0,0.53805685]
[1748621747346,0.19990021,105310.0,105300.0,0.52030928]
[1748621747943,0.19990021,105310.0,105300.0,0.53805697]
[1748621748099,0.19990021,105310.0,105300.0,1.0608411]
[1748621748443,0.19990021,105310.0,105300.0,0.52030928]
[1748621749002,0.00998446,105310.0,105300.0,1.28851132]
[1748621749217,0.21888995,105310.0,105300.0,1.28851132]
[1748621749400,0.2188904,105310.0,105300.0,1.30625576]
[1748621749611,0.2188904,105310.0,105300.0,1.28851132]
[1748621749808,0.22838608,105310.0,105300.0,1.29800754]
[1748621750008,0.22838608,105310.0,105300.0,1.31574998]
[1748621750233,0.22838608,105310.0,105300.0,1.29800754]
[1748621750849,0.22838608,105310.0,105300.0,1.31574759]
[1748621751269,0.22838608,105310.0,105300.0,1.33348767]
[1748621751474,0.22838662,105310.0,105300.0,1.31574759]
[1748621751681,0.22838662,105310.0,105300.0,1.33348748]
[1748621751883,0.22838662,105310.0,105300.0,1.31574759]
[1748621752507,0.22838662,105310.0,105300.0,1.33348885]
[1748621752708,0.02897537,105310.0,105300.0,1.33473976]
[1748621752917,0.21889085,105310.0,105300.0,1.33473976]
[1748621753122,0.22838662,105310.0,105300.0,1.35247419]
[1748621753334,0.22838662,105310.0,105300.0,1.32524372]
[1748621753950,0.22838662,105310.0,105300.0,1.31574759]
[1748621754798,0.22838662,105310.0,105300.0,1.33348468]
[1748621755013,0.22838662,105310.0,105300.0,1.34298106]
[1748621755235,0.2188913,105310.0,105300.0,1.33348493]
[1748621755663,0.2188913,105310.0,105300.0,1.31574759]
[1748621756079,0.2188913,105310.0,105300.0,1.33349022]
[1748621756296,0.2188913,105310.0,105300.0,1.32524363]
[1748621756503,0.01948005,105310.0,105300.0,1.32524363]
[1748621756709,0.01948005,105310.0,105300.0,1.34298612]
[1748621756922,0.20939553,105310.0,105300.0,1.34298612]
[1748621757141,0.2188913,105310.0,105300.0,1.34298612]
[1748621757361,0.2188913,105310.0,105300.0,1.61851404]
[1748621757573,0.20939589,105310.0,105300.0,1.40958745]
[1748621757822,0.20939589,105310.0,105300.0,1.41908913]
[1748621758029,0.20939589,105310.0,105300.0,0.91051314]
[1748621758239,0.20939589,105310.0,105300.0,0.92826075]
[1748621758449,0.20939589,105310.0,105300.0,0.92826073]
[1748621758994,0.20939589,105310.0,105300.0,0.94416073]
[1748621759410,0.20939589,105310.0,105300.0,0.92641314]
[1748621759616,0.20939589,105310.0,105300.0,0.94416117]
[1748621760028,0.20939589,105310.0,105300.0,0.55824239]
[1748621760247,0.24109589,105310.0,105300.0,0.63374291]
[1748621760482,0.24109589,105310.0,105300.0,0.92822291]
[1748621760683,0.20939589,105310.0,105300.0,0.92822291]
[1748621761109,0.78162771,105310.0,105300.0,0.0780043]
[1748621761317,0.78162771,105310.0,105300.0,0.06025453]
[1748621761708,0.24109589,105310.0,105300.0,0.078018]
[1748621761951,0.24109589,105310.0,105300.0,0.07801791]
[1748621762155,0.24109589,105310.0,105300.0,0.07801157]
[1748621762575,0.24109589,105310.0,105300.0,0.0780117]
[1748621763199,0.24109589,105310.0,105300.0,0.06025453]
[1748621763409,0.24109589,105310.0,105300.0,0.07801178]
[1748621763624,0.24109589,105310.0,105300.0,0.18360291]
[1748621764050,0.20939589,105310.0,105300.0,0.18360135]
[1748621765277,0.20939589,105310.0,105300.0,0.18359948]
[1748621765886,0.20939589,105310.0,105300.0,0.18360058]
[1748621766091,0.20939589,105310.0,105300.0,0.16584933]
[1748621766300,0.20939589,105310.0,105300.0,0.18360063]
[1748621767123,0.24069589,105310.0,105300.0,0.18360321]
[1748621767948,0.24069589,105310.0,105300.0,0.09254926]
[1748621768556,0.24069589,105310.0,105300.0,0.09255034]
[1748621769216,0.24069589,105310.0,105300.0,0.07479538]
[1748621769630,0.24069589,105310.0,105300.0,0.06025453]
[1748621770241,0.24069589,105310.0,105300.0,0.07800955]
[1748621770449,0.24069589,105310.0,105300.0,0.06025453]
[1748621770856,0.24069589,105310.0,105300.0,0.07801002]
[1748621771659,0.24069589,105310.0,105300.0,0.07800524]
[1748621773138,0.24069589,105310.0,105300.0,0.07800327]
[1748621773586,0.24069589,105310.0,105300.0,0.06025453]
[1748621774035,0.24069589,105310.0,105300.0,0.07800304]
[1748621774217,0.24069589,105310.0,105300.0,0.07800286]
[1748621775024,0.24069589,105310.0,105300.0,0.06025453]
[1748621775230,0.24069589,105310.0,105300.0,0.07800315]
[1748621775439,0.78158957,105310.0,105300.0,0.06025453]
[1748621776178,0.87298957,105310.0,105300.0,0.05625453]
[1748621776390,0.96404352,105310.0,105300.0,0.05625453]
[1748621776989,1.30404352,105310.0,105300.0,0.05625453]
[1748621777145,1.33254352,105310.0,105300.0,0.05325453]
[1748621777556,1.33254352,105310.0,105300.0,0.05825453]
[1748621777740,1.34154896,105310.0,105300.0,0.05725453]
[1748621777941,1.34154896,105310.0,105300.0,0.05325453]
[1748621778148,1.34254896,105310.0,105300.0,0.05325453]
[1748621778358,1.34354896,105310.0,105300.0,0.05325453]
[1748621781076,1.39354896,105310.0,105300.0,0.05325453]
[1748621781808,1.34354896,105310.0,105300.0,0.05325453]
[1748621782015,1.39354896,105310.0,105300.0,0.05325453]
[1748621782638,1.34354896,105310.0,105300.0,0.05325453]
[1748621782857,1.35354896,105310.0,105300.0,0.05325453]
[1748621783032,0.55603001,105300.0,105290.0,0.01589]
[1748621783253,1.49945764,105300.0,105290.0,0.01589]
[1748621783579,2.10035132,105300.0,105290.0,0.01589]
[1748621783797,2.10035132,105300.0,105240.0,0.07582987]
[1748621783798,0.20902548,105250.0,105240.0,0.07582987]
[1748621784015,0.20902548,105250.0,105240.0,0.16688382]
[1748621784300,0.20902548,105250.0,105240.0,0.18142467]
[1748621785061,0.20902548,105250.0,105240.0,0.18557175]
[1748621785264,0.20902548,105250.0,105240.0,0.00418708]
[1748621786536,0.20893139,105250.0,105240.0,0.00418708]
[1748621786989,0.20893139,105250.0,105240.0,0.00818708]
[1748621787711,0.20893139,105250.0,105240.0,0.01704245]
[1748621788131,0.20893139,105250.0,105240.0,0.0170423]
[1748621788491,0.20893139,105250.0,105240.0,0.00818708]
[1748621788706,0.24153139,105250.0,105240.0,0.00818708]
[1748621789641,0.22493139,105250.0,105240.0,0.00818708]
[1748621789839,0.20893139,105250.0,105240.0,0.00818708]
[1748621792060,0.20893139,105250.0,105240.0,0.14468188]
[1748621792484,0.20893139,105250.0,105240.0,1.22511936]
[1748621792688,0.20893139,105250.0,105240.0,1.32650126]
[1748621792902,0.20893139,105250.0,105240.0,1.31699936]
[1748621793081,0.19943066,105250.0,105240.0,1.12695765]
[1748621793313,0.19943066,105250.0,105240.0,1.32650145]
[1748621793493,0.19002375,105250.0,105240.0,1.11745556]
[1748621793697,0.19002375,105250.0,105240.0,0.57656188]
[1748621794783,0.19002375,105250.0,105240.0,0.48468188]
[1748621794910,0.19002375,105250.0,105240.0,0.57656188]
[1748621795708,0.19002375,105250.0,105240.0,0.46888188]
[1748621795880,0.19002375,105250.0,105240.0,0.09924103]
[1748621798491,0.19002375,105250.0,105240.0,0.13084103]
[1748621804640,0.19002375,105250.0,105240.0,0.09924103]
[1748621808553,0.19002375,105250.0,105240.0,0.01708037]
[1748621808764,0.76237949,105250.0,105240.0,0.01708037]
[1748621809016,0.22092375,105250.0,105240.0,0.00818708]
[1748621809246,0.22092375,105250.0,105240.0,0.01464068]
[1748621809473,0.22092375,105250.0,105240.0,0.01464065]
[1748621809693,0.22092375,105250.0,105240.0,0.01464045]
[1748621810366,0.22092375,105250.0,105240.0,0.01464044]
[1748621811035,0.22092375,105250.0,105240.0,0.01464066]
[1748621811509,1.06037949,105250.0,105240.0,0.00574708]
[1748621811730,1.15143344,105250.0,105240.0,0.01464212]
[1748621811951,1.15143344,105250.0,105240.0,0.00574708]
[1748621812388,1.15143344,105250.0,105240.0,0.004]
[1748621812596,1.15143344,105250.0,105240.0,0.006]
[1748621813017,1.15143344,105250.0,105240.0,0.004]
[1748621813234,0.20908508,105220.0,105210.0,0.10768]
[1748621813454,0.20908508,105220.0,105210.0,0.56941391]
[1748621813890,0.20908508,105220.0,105210.0,0.47749391]
[1748621814515,0.20908508,105220.0,105210.0,0.48149391]
[1748621814784,0.20908508,105220.0,105210.0,0.14149391]
[1748621815248,0.03801385,105220.0,105210.0,0.89226599]
[1748621815457,0.02851068,105220.0,105210.0,0.91627458]
[1748621815664,0.2280925,105220.0,105210.0,0.91627476]
[1748621815879,0.2280925,105220.0,105210.0,0.92577901]
[1748621816075,0.2280925,105220.0,105210.0,1.26577901]
[1748621816283,0.22809241,105220.0,105210.0,1.24676997]
[1748621816696,0.22809241,105220.0,105210.0,1.23726563]
[1748621816901,0.20908544,105220.0,105210.0,0.9752699]
[1748621817108,0.19958173,105220.0,105210.0,0.9752699]
[1748621817334,0.19958173,105220.0,105210.0,0.98477451]
[1748621817795,0.19007793,105220.0,105210.0,0.48649391]
[1748621818020,0.19007793,105220.0,105210.0,0.78569391]
[1748621818237,0.19007793,105220.0,105210.0,0.48649391]
[1748621818461,0.19007793,105220.0,105210.0,0.11479391]
[1748621818720,0.19007793,105220.0,105210.0,0.10913529]
[1748621818929,0.19007793,105220.0,105210.0,0.10025306]
[1748621819161,0.19007793,105220.0,105210.0,0.11535306]
[1748621819368,0.19007793,105220.0,105210.0,0.12989391]
[1748621821853,0.19007793,105220.0,105210.0,0.14549391]
[1748621824799,0.19007793,105220.0,105210.0,0.12989391]
[1748621825224,0.19007793,105220.0,105210.0,0.11479391]
[1748621826090,0.19007793,105220.0,105210.0,0.13049391]
[1748621828508,0.19007793,105220.0,105210.0,0.11479391]
[1748621830681,0.76344471,105220.0,105210.0,0.00919911]
[1748621830889,0.52165793,105220.0,105210.0,0.00919911]
[1748621831095,1.06332471,105220.0,105210.0,0.00919911]
[1748621831512,0.52165793,105220.0,105210.0,0.00919911]
[1748621834005,1.06353999,105220.0,105210.0,0.00919911]
[1748621837393,0.76365999,105220.0,105210.0,0.00919911]
[1748621837615,1.06385999,105220.0,105210.0,0.00919911]
[1748621838034,0.52197793,105220.0,105210.0,0.00919911]
[1748621838243,0.22207793,105220.0,105210.0,0.00919911]
[1748621838677,0.19007793,105220.0,105210.0,0.00919911]
[1748621839341,0.22207793,105220.0,105210.0,0.00919911]
[1748621845268,0.76395999,105220.0,105210.0,0.00919911]
[1748621845488,0.22207793,105220.0,105210.0,0.00919911]
[1748621847545,0.76395999,105220.0,105210.0,0.00919911]
[1748621848453,0.22207793,105220.0,105210.0,0.00919911]
[1748621848944,0.76395999,105220.0,105210.0,0.00919911]
[1748621849079,0.22207793,105220.0,105210.0,0.00919911]
[1748621849899,0.19007793,105220.0,105210.0,0.00919911]
[1748621850469,0.22077793,105220.0,105210.0,0.00919911]
[1748621852849,0.20537793,105220.0,105210.0,0.00919911]
[1748621853027,0.19007793,105220.0,105210.0,0.02479911]
[1748621853438,0.19007793,105220.0,105210.0,0.00919911]
[1748621854624,0.19007793,105220.0,105210.0,0.14589391]
[1748621855766,0.19007793,105220.0,105210.0,0.68777597]
[1748621856375,0.19007793,105220.0,105210.0,0.14589391]
[1748621857478,0.19007793,105220.0,105210.0,0.13135306]
[1748621857719,0.19007793,105220.0,105210.0,0.11605306]
[1748621857896,0.19007793,105220.0,105210.0,0.10025306]
[1748621858314,0.19007793,105220.0,105210.0,0.11625306]
[1748621859669,0.19007793,105220.0,105210.0,0.13265306]
[1748621860790,0.19007793,105220.0,105210.0,0.11625306]
[1748621861825,0.19007793,105220.0,105210.0,0.10025306]
[1748621862851,0.19007793,105220.0,105210.0,0.13205306]
[1748621868198,0.19007793,105220.0,105210.0,0.68847597]
[1748621868396,0.19007793,105220.0,105210.0,0.14659391]
[1748621875437,0.19007793,105220.0,105210.0,0.14415391]
[1748621880624,0.19007793,105220.0,105210.0,0.12865391]
[1748621881039,0.19007793,105220.0,105210.0,0.11235391]
[1748621882945,0.19007793,105220.0,105210.0,0.12835391]
[1748621886426,0.19007793,105220.0,105210.0,0.14455391]
[1748621887029,0.19007793,105220.0,105210.0,0.12835391]
[1748621890436,0.19007793,105220.0,105210.0,0.11235391]
[1748621892432,0.19007793,105220.0,105210.0,0.12895391]
[1748621894286,0.19007793,105220.0,105210.0,0.14505391]
[1748621895020,0.19007793,105220.0,105210.0,0.12895391]
[1748621895567,0.19007793,105220.0,105210.0,0.11235391]
[1748621898866,0.22237793,105220.0,105210.0,0.11235391]
[1748621899056,0.22237793,105220.0,105210.0,0.09781306]
[1748621900059,0.20587793,105220.0,105210.0,0.09781306]
[1748621901560,0.19007793,105220.0,105210.0,0.09781306]
[1748621914028,0.7318242,105220.0,105210.0,0.09781306]
[1748621915258,0.19007793,105220.0,105210.0,0.09781306]
[1748621915817,0.7318242,105220.0,105210.0,0.09781306]
[1748621918219,0.19007793,105220.0,105210.0,0.09781306]
[1748621925756,0.19007793,105220.0,105210.0,0.1156238]
[1748621926486,0.19007793,105220.0,105210.0,0.11562381]
[1748621926866,0.19007793,105220.0,105210.0,0.11562395]
[1748621929060,0.19007793,105220.0,105210.0,0.11562479]
[1748621929268,0.19007793,105220.0,105210.0,0.14293953]
[1748621929685,0.19007793,105220.0,105210.0,0.6846858]
[1748621930534,0.19007793,105220.0,105210.0,0.68468581]
[1748621930838,0.19007793,105220.0,105210.0,0.66687407]
[1748621931049,0.19007793,105220.0,105210.0,0.6846858]
[1748621931264,0.19007793,105220.0,105210.0,0.66687407]
[1748621931475,0.19007793,105220.0,105210.0,0.6846858]
[1748621931658,0.19007793,105220.0,105210.0,0.14293953]
[1748621932120,0.19007793,105220.0,105210.0,0.13343652]
[1748621932121,0.7637242,105220.0,105210.0,0.13343652]
[1748621932501,0.22197793,105220.0,105210.0,0.14273389]
[1748621932762,0.7637242,105220.0,105210.0,0.12492216]
[1748621932970,0.7637242,105220.0,105210.0,0.14273403]
[1748621933177,0.7637242,105220.0,105210.0,0.14273455]
[1748621935276,0.22197793,105220.0,105210.0,0.14273455]
[1748621935494,0.7637242,105220.0,105210.0,0.14273455]
[1748621935704,0.7637242,105220.0,105210.0,0.0516806]
[1748621935914,0.7637242,105220.0,105210.0,0.03386821]
[1748621936339,0.7637242,105220.0,105210.0,0.05167844]
[1748621936546,0.7637242,105220.0,105210.0,0.05167848]
[1748621936751,0.7637242,105220.0,105210.0,0.03386821]
[1748621938592,0.22197793,105220.0,105210.0,0.03386821]
[1748621938826,0.7637242,105220.0,105210.0,0.03386821]
[1748621939633,0.22197793,105220.0,105210.0,0.03386821]
[1748621939865,0.7637242,105220.0,105210.0,0.03386821]
[1748621940126,0.19007793,105220.0,105210.0,0.03386821]
[1748621940454,0.19007793,105220.0,105210.0,0.57561448]
[1748621940659,0.22217793,105220.0,105210.0,0.03386821]
[1748621941277,0.7639242,105220.0,105210.0,0.03386821]
[1748621941479,0.7639242,105220.0,105210.0,0.03146821]
[1748621944394,1.60335047,105220.0,105210.0,0.02217084]
[1748621944604,2.57615069,105220.0,105210.0,0.02217084]
[1748621945056,2.60467769,105220.0,105210.0,0.02217084]
[1748621945272,2.62874604,105220.0,105210.0,0.02217084]
[1748621945481,1.85563941,105210.0,105200.0,0.05004]
[1748621945692,0.41429455,105210.0,105200.0,0.05013319]
[1748621945906,2.05809436,105210.0,105200.0,0.05013319]
[1748621946112,1.53784086,105210.0,105200.0,0.05013319]
[1748621947587,1.83872086,105210.0,105200.0,0.05013319]
[1748621948010,0.75407284,105210.0,105200.0,0.05013319]
[1748621948228,1.83876086,105210.0,105200.0,0.05013319]
[1748621948437,1.84276086,105210.0,105200.0,0.05013319]
[1748621948640,1.82246357,105210.0,105200.0,0.05013319]
[1748621948855,1.92497479,105210.0,105200.0,0.05013319]
[1748621949701,1.94527208,105210.0,105200.0,0.05013319]
[1748621949907,2.28527208,105210.0,105200.0,0.05013319]
[1748621950117,2.24276086,105210.0,105200.0,0.05013319]
[1748621951362,0.98675184,105210.0,105200.0,0.05013319]
[1748621951569,1.52909585,105210.0,105200.0,0.05013319]
[1748621951989,1.20979856,105210.0,105200.0,0.05013319]
[1748621952205,1.60171856,105210.0,105200.0,0.05013319]
[1748621952835,0.2056006,105210.0,105200.0,0.05013319]
[1748621953042,0.2056006,105210.0,105200.0,0.18772799]
[1748621953872,0.1996006,105210.0,105200.0,0.18772799]
[1748621954098,0.2026006,105210.0,105200.0,0.18772799]
[1748621954299,0.2046006,105210.0,105200.0,0.18772799]
[1748621954511,0.2026006,105210.0,105200.0,0.18772799]
[1748621954728,0.1996006,105210.0,105200.0,0.18772799]
[1748621954988,0.2016006,105210.0,105200.0,0.18772799]
[1748621960635,0.2016006,105210.0,105200.0,0.730072]
[1748621960846,0.21110512,105210.0,105200.0,1.37203719]
[1748621961054,0.21110512,105210.0,105200.0,1.38154253]
[1748621961254,0.21110512,105210.0,105200.0,1.36253176]
[1748621961473,0.21110512,105210.0,105200.0,0.82969336]
[1748621961702,0.21010512,105210.0,105200.0,1.39104832]
[1748621961901,0.2006006,105210.0,105200.0,0.62056799]
[1748621962876,0.2006006,105210.0,105200.0,1.162912]
[1748621963079,0.1996006,105210.0,105200.0,1.162912]
[1748621963641,0.1996006,105210.0,105200.0,1.165912]
[1748621963856,0.1996006,105210.0,105200.0,1.164912]
[1748621964049,0.1996006,105210.0,105200.0,1.166912]
[1748621964565,0.1995792,105230.0,105220.0,0.54567793]
[1748621964768,0.01900517,105230.0,105220.0,2.43945222]
[1748621964974,0.01900463,105230.0,105220.0,2.53229222]
[1748621965234,0.00950218,105230.0,105220.0,2.34914822]
[1748621965437,0.19952484,105250.0,105240.0,0.04604085]
[1748621965599,0.19952484,105250.0,105240.0,0.67943881]
[1748621965807,0.19952484,105250.0,105240.0,0.6889409]
[1748621966014,0.19952484,105250.0,105240.0,0.67943881]
[1748621966412,0.19952484,105250.0,105240.0,0.86948061]
[1748621966618,0.19952484,105250.0,105240.0,0.87907589]
[1748621967016,0.19952484,105250.0,105240.0,0.679532]
[1748621967216,0.19952484,105250.0,105240.0,0.87907589]
[1748621967423,0.19952484,105250.0,105240.0,0.8885777]
[1748621967990,0.19952484,105250.0,105240.0,0.89810045]
[1748621968215,0.19952484,105250.0,105240.0,0.8885777]
[1748621968410,0.19952484,105250.0,105240.0,0.87907589]
[1748621968610,0.19952484,105250.0,105240.0,0.88857789]
[1748621969111,0.19952484,105250.0,105240.0,0.89807979]
[1748621969343,0.19003344,105270.0,105250.0,0.58566578]
[1748621969565,0.21850555,105260.0,105250.0,0.59516669]
[1748621969774,0.22800583,105260.0,105250.0,1.22856474]
[1748621969984,0.21850609,105260.0,105250.0,2.17037574]
[1748621970227,0.20900608,105260.0,105250.0,2.15137356]
[1748621970437,0.19004941,105280.0,105270.0,0.04614085]
[1748621970674,0.19004941,105280.0,105270.0,1.01953881]
[1748621970895,0.19954789,105280.0,105270.0,1.88193666]
[1748621971112,0.2279625,105280.0,105270.0,1.70040546]
[1748621971315,0.21846457,105280.0,105270.0,1.45205513]
[1748621971735,0.21846457,105280.0,105270.0,1.34148033]
[1748621971960,0.21846457,105280.0,105270.0,1.23802433]
[1748621972152,0.20896637,105280.0,105270.0,1.2366111]
[1748621972355,0.20896637,105280.0,105270.0,1.3390011]
[1748621972580,0.20896637,105280.0,105270.0,1.2271119]
[1748621972791,0.20896637,105280.0,105270.0,1.4726729]
[1748621973246,0.20896637,105280.0,105270.0,1.49235021]
[1748621973452,0.20896637,105280.0,105270.0,0.95241943]
[1748621973654,0.20896591,105280.0,105270.0,1.50284932]
[1748621973856,0.02849406,105280.0,105270.0,1.52184709]
[1748621974137,0.01899577,105280.0,105270.0,1.52184709]
[1748621974901,0.02849397,105280.0,105270.0,1.52184709]
[1748621975109,0.21846366,105280.0,105270.0,1.54084234]
[1748621975316,0.22796214,105280.0,105270.0,0.52636611]
[1748621975536,0.20896637,105280.0,105270.0,0.48333126]
[1748621975687,0.20896637,105280.0,105270.0,0.78345126]
[1748621976146,0.20896637,105280.0,105270.0,0.79799211]
[1748621976482,0.20896637,105280.0,105270.0,0.42635211]
[1748621976712,0.20896637,105280.0,105270.0,0.12627211]
[1748621976938,0.20896637,105280.0,105270.0,0.002]
[1748621976939,1.08121715,105280.0,105270.0,0.002]
[1748621977142,1.49700702,105280.0,105270.0,0.002]
[1748621977339,2.0379378,105280.0,105270.0,0.002]
[1748621977565,1.49700702,105280.0,105270.0,0.002]
[1748621977990,0.88028637,105280.0,105270.0,0.002]
[1748621978185,1.42121715,105280.0,105270.0,0.002]
[1748621978397,1.42121715,105280.0,105270.0,0.001]
[1748621978597,2.05320188,105280.0,105270.0,0.001]
[1748621978774,0.20902548,105250.0,105240.0,9.319e-05]
[1748621978972,0.20902548,105250.0,105240.0,0.10568799]
[1748621980450,0.20902548,105250.0,105240.0,0.10768799]
[1748621982381,0.20902548,105250.0,105240.0,0.09314714]
[1748621982588,0.20902548,105250.0,105240.0,0.00209319]
[1748621988318,0.24142548,105250.0,105240.0,0.00209319]
[1748621989413,0.78235626,105250.0,105240.0,0.00209319]
[1748621990361,0.24142548,105250.0,105240.0,0.00209319]
[1748621995467,0.87711626,105250.0,105240.0,0.00209319]
[1748621995985,0.87787322,105250.0,105240.0,0.00209319]
[1748621996413,0.96892717,105250.0,105240.0,0.00209319]
[1748621996844,1.51061491,105250.0,105240.0,0.00209319]
[1748621997695,0.96892717,105250.0,105240.0,0.00209319]
[1748621997903,0.96892717,105250.0,105240.0,0.00109319]
[1748621998111,0.97400447,105250.0,105240.0,0.00109319]
[1748621998331,1.31400447,105250.0,105240.0,9.319e-05]
[1748621998537,0.77223943,105250.0,105240.0,9.319e-05]
[1748621998741,1.31400447,105250.0,105240.0,9.319e-05]
[1748621999412,1.32298991,105250.0,105240.0,9.319e-05]
[1748621999625,1.32798991,105250.0,105240.0,9.319e-05]
[1748622003939,1.96226617,105250.0,105240.0,9.319e-05]
[1748622004194,1.86975495,105250.0,105240.0,9.319e-05]
[1748622004625,1.32798991,105250.0,105240.0,9.319e-05]
[1748622005043,0.71273902,105250.0,105240.0,9.319e-05]
[1748622005251,1.64822406,105250.0,105240.0,9.319e-05]
[1748622005895,1.66326927,105250.0,105240.0,9.319e-05]
[1748622006551,2.34754553,105250.0,105240.0,9.319e-05]
[1748622006797,2.25503431,105250.0,105240.0,9.319e-05]
[1748622007036,2.24376016,105250.0,105240.0,9.319e-05]
[1748622007515,2.24376016,105250.0,105200.0,0.0488]
[1748622007516,0.24030494,105210.0,105200.0,0.0488]
[1748622007729,1.26724393,105210.0,105200.0,0.0488931]
[1748622008373,1.29577093,105210.0,105200.0,0.0488931]
[1748622008795,1.29577093,105210.0,105200.0,0.0508931]
[1748622009002,1.29577093,105210.0,105200.0,0.0498931]
[1748622009003,1.31426264,105210.0,105200.0,0.0498931]
[1748622009647,1.66726264,105210.0,105200.0,0.0498931]
[1748622009887,1.66734264,105210.0,105200.0,0.0498931]
[1748622010100,1.66734264,105210.0,105200.0,0.0488931]
[1748622010530,1.66934264,105210.0,105200.0,0.0488931]
[1748622010785,1.27514264,105210.0,105200.0,0.0488931]
[1748622010997,1.67102264,105210.0,105200.0,0.0488931]
[1748622011639,1.1292576,105210.0,105200.0,0.0488931]